bitfinex/quotes_ETHUSD_20250711
["timestamp","ask_amount","ask_price","bid_price","bid_amount"]
[1752257862202,5.55,2989.9,2989.8,15.39688889]
[1752257863121,6.66,2989.9,2989.8,15.39688889]
[1752257863722,6.66,2989.9,2989.8,14.94720533]
[1752257864888,6.66,2989.9,2989.8,20.07020533]
[1752257865931,7.77,2989.9,2989.8,20.07020533]
[1752257866724,7.77,2989.9,2989.8,14.94720533]
[1752257866899,7.77,2989.9,2989.8,20.07020533]
[1752257867232,7.77,2989.9,2989.7,8.017]
[1752257867440,1.9455,2989.8,2989.7,8.017]
[1752257867720,1.97897745,2989.8,2989.7,13.14]
[1752257868081,2.44607745,2989.8,2989.7,13.14]
[1752257868281,3.55607745,2989.8,2989.7,8.017]
[1752257868507,3.55607745,2989.8,2989.7,13.14]
[1752257870406,3.08897745,2989.8,2989.7,13.14]
[1752257870922,4.19897745,2989.8,2989.7,13.14]
[1752257871105,4.66607745,2989.8,2989.7,13.14]
[1752257873095,5.77607745,2989.8,2989.7,13.14]
[1752257874317,5.30897745,2989.8,2989.7,13.14]
[1752257874908,5.77607745,2989.8,2989.7,13.14]
[1752257875235,5.77607745,2989.8,2989.7,8.017]
[1752257875590,6.88607745,2989.8,2989.7,8.017]
[1752257875791,6.8526,2989.8,2989.7,8.017]
[1752257876020,6.8526,2989.8,2989.7,13.14]
[1752257877731,6.8526,2989.8,2989.7,8.017]
[1752257877909,7.9626,2989.8,2989.7,13.14]
[1752257878307,5.55,2989.8,2989.7,13.14]
[1752257878509,5.58347745,2989.8,2989.7,13.7707]
[1752257879129,5.55,2989.8,2989.7,13.7707]
[1752257879831,5.55,2989.8,2989.7,28.3602172]
[1752257880134,7.77,2989.9,2989.8,13.34470533]
[1752257880295,7.77,2989.9,2989.8,15.63812222]
[1752257881240,7.77,2989.9,2989.8,15.22010533]
[1752257883079,8.88,2989.9,2989.8,15.22010533]
[1752257885322,9.99,2989.9,2989.8,15.22010533]
[1752257887640,11.1,2989.9,2989.8,15.22010533]
[1752257888038,11.1,2989.9,2989.8,15.63812222]
[1752257888770,1.11,2990.1,2990.0,4.5313816]
[1752257889061,1.11,2990.1,2990.0,31.98962202]
[1752257889363,1.11,2990.1,2990.0,32.62032202]
[1752257890148,2.22,2990.1,2990.0,32.62032202]
[1752257890947,2.22,2990.1,2990.0,33.17032202]
[1752257892616,3.33,2990.1,2990.0,33.17032202]
[1752257892818,3.33,2990.1,2990.0,0.1672]
[1752257893055,3.33,2990.1,2990.0,5.2882]
[1752257893431,3.33,2990.1,2990.0,9.0961816]
[1752257893619,3.33,2990.1,2990.0,31.43242202]
[1752257893820,3.33,2990.1,2990.0,32.61502202]
[1752257895359,4.44,2990.1,2990.0,32.61502202]
[1752257895747,4.44,2990.1,2990.0,33.16502202]
[1752257897827,5.55,2990.1,2990.0,33.16502202]
[1752257900374,6.66,2990.1,2990.0,33.16502202]
[1752257901888,6.662,2990.1,2990.0,33.16502202]
[1752257902951,7.772,2990.1,2990.0,33.16502202]
[1752257905380,8.882,2990.1,2990.0,33.16502202]
[1752257906090,14.43,2990.4,2990.3,15.06214607]
[1752257906265,0.002,2990.9,2990.8,3.343587]
[1752257906468,0.002,2990.9,2990.8,37.25522742]
[1752257906853,0.002,2990.9,2990.8,37.68892742]
[1752257907446,0.002,2990.9,2990.8,37.93594239]
[1752257907841,1.112,2990.9,2990.8,37.93594239]
[1752257908272,1.112,2990.9,2990.8,38.10419424]
[1752257909350,1.112,2990.9,2990.8,36.76794239]
[1752257910276,2.222,2990.9,2990.8,36.76794239]
[1752257911264,2.222,2990.9,2990.8,37.31794239]
[1752257912885,3.332,2990.9,2990.8,15.53241497]
[1752257913384,3.332,2990.9,2990.8,18.87600197]
[1752257914280,3.332,2990.9,2990.8,10.41341497]
[1752257914482,3.767,2990.9,2990.8,15.53241497]
[1752257915403,4.877,2990.9,2990.8,15.53241497]
[1752257915771,4.442,2990.9,2990.8,15.53241497]
[1752257917015,4.442,2990.9,2990.8,18.87600197]
[1752257917216,4.442,2990.9,2990.8,27.32370197]
[1752257917515,4.442,2990.9,2990.8,40.90264239]
[1752257917711,5.552,2990.9,2990.8,41.28847684]
[1752257918492,5.552,2990.9,2990.8,40.90264239]
[1752257919477,5.552,2990.9,2990.8,39.22624239]
[1752257919686,5.552,2990.9,2990.8,39.65994239]
[1752257920166,6.662,2990.9,2990.8,39.65994239]
[1752257920366,6.662,2990.9,2990.8,39.22624239]
[1752257920763,6.662,2990.9,2990.8,39.65994239]
[1752257921695,8.9212,2990.9,2990.2,8.014]
[1752257921893,1.1578,2990.7,2990.2,8.014]
[1752257922092,0.03347745,2990.6,2990.3,5.119]
[1752257922271,0.46847745,2990.6,2990.3,5.119]
[1752257922901,1.11,2990.6,2990.4,10.0]
[1752257923200,1.11,2990.6,2990.5,15.118]
[1752257924994,1.14347745,2990.6,2990.5,15.118]
[1752257925406,2.25347745,2990.6,2990.5,15.118]
[1752257925878,2.22,2990.6,2990.5,15.118]
[1752257927610,2.22,2990.6,2990.5,18.89342242]
[1752257927788,3.33,2990.6,2990.5,18.89342242]
[1752257930211,4.44,2990.6,2990.5,18.89342242]
[1752257931813,4.44,2990.6,2990.5,19.05982242]
[1752257932311,4.44,2990.6,2990.5,18.62832242]
[1752257932687,5.55,2990.6,2990.5,15.2844]
[1752257933080,5.55,2990.6,2990.5,10.1664]
[1752257933303,5.58347745,2990.6,2990.5,23.2994]
[1752257933478,5.55,2990.6,2990.5,12.987733]
[1752257933705,5.55,2990.6,2990.5,13.154133]
[1752257935117,5.55,2990.6,2990.5,17.86538987]
[1752257935278,6.66,2990.6,2990.5,17.86538987]
[1752257935616,6.66,2990.6,2990.5,17.47955542]
[1752257935795,6.66,2990.6,2990.5,12.50582242]
[1752257935988,6.66,2990.6,2990.5,13.2994]
[1752257936582,6.66,2990.6,2990.5,8.1804]
[1752257936786,6.66,2990.6,2990.5,13.2984]
[1752257937723,7.77,2990.6,2990.5,13.2984]
[1752257939528,7.77,2990.6,2990.5,21.55057562]
[1752257940317,8.88,2990.6,2990.5,21.55057562]
[1752257940723,8.88,2990.6,2990.5,8.1804]
[1752257940932,1.2156,2990.5,2990.1,0.001]
[1752257941230,1.3711,2990.3,2990.1,0.001]
[1752257941404,1.23737745,2990.2,2990.1,0.001]
[1752257941599,1.4235152,2990.2,2990.1,0.001]
[1752257941940,1.4235152,2990.2,2989.9,0.001]
[1752257941941,1.2039,2990.1,2989.9,0.001]
[1752257942229,1.25817745,2990.0,2989.9,0.001]
[1752257942520,1.71497745,2990.0,2989.9,5.119]
[1752257942688,1.90508897,2990.0,2989.9,5.119]
[1752257944909,3.01508897,2990.0,2989.9,5.119]
[1752257947338,4.12508897,2990.0,2989.9,5.119]
[1752257949825,5.23508897,2990.0,2989.9,5.119]
[1752257950372,5.23508897,2990.0,2989.9,0.001]
[1752257950716,5.23508897,2990.0,2989.9,5.121]
[1752257952329,6.34508897,2990.0,2989.9,5.121]
[1752257953317,6.89508897,2990.0,2989.9,0.001]
[1752257953549,16.86161152,2990.0,2989.9,0.001]
[1752257954852,1.7463,2989.6,2989.5,0.001]
[1752257955151,1.77977745,2989.6,2989.5,0.001]
[1752257955327,2.23657745,2989.6,2989.5,0.001]
[1752257956830,1.6531,2989.6,2989.5,0.001]
[1752257957232,12.7631,2989.6,2989.5,0.001]
[1752257957555,14.59275775,2989.6,2989.5,0.001]
[1752257959678,15.15275775,2989.6,2989.5,0.001]
[1752257962030,16.26275775,2989.6,2989.5,0.001]
[1752257963161,4.5263,2989.6,2989.5,5.122]
[1752257964668,5.6363,2989.6,2989.5,5.122]
[1752257965870,4.44,2989.6,2989.5,5.122]
[1752257966169,4.6072,2989.6,2989.5,5.122]
[1752257966929,5.7172,2989.6,2989.5,5.122]
[1752257969239,6.8272,2989.6,2989.5,5.122]
[1752257971755,7.9372,2989.6,2989.5,5.122]
[1752257974360,9.0472,2989.6,2989.5,5.122]
[1752257976865,10.1572,2989.6,2989.5,5.122]
[1752257977085,11.73472,2989.6,2989.5,5.122]
[1752257977286,11.73472,2989.6,2989.5,0.001]
[1752257977489,13.06362,2989.6,2989.5,0.001]
[1752257977688,13.61362,2989.6,2989.5,0.001]
[1752257977996,23.61362,2989.6,2989.5,0.001]
[1752257979279,24.72362,2989.6,2989.5,0.001]
[1752257981290,28.23562,2989.6,2989.5,0.001]
[1752257981495,25.44300119,2989.6,2989.5,0.001]
[1752257981701,26.55300119,2989.6,2989.5,0.001]
[1752257984106,11.7588,2989.5,2989.0,0.001]
[1752257984308,0.55,2988.8,2988.1,0.001]
[1752257984605,8.26158909,2988.4,2988.1,0.001]
[1752257984772,0.03347745,2988.3,2988.1,0.001]
[1752257984972,0.46557745,2988.3,2988.1,0.001]
[1752257985175,1.6526,2988.2,2988.1,0.001]
[1752257985411,2.2026,2988.2,2988.1,0.001]
[1752257986677,13.3126,2988.2,2988.1,0.001]
[1752257987485,18.4166,2988.2,2988.1,0.001]
[1752257988673,11.7655,2988.1,2987.3,0.001]
[1752257988874,10.55,2987.6,2987.3,0.001]
[1752257989103,11.7655,2987.4,2987.3,0.001]
[1752257989308,0.55,2987.1,2986.2,0.001]
[1752257989508,29.3293931,2987.1,2986.2,0.001]
[1752257989809,32.69497496,2987.1,2986.2,0.001]
[1752257990383,14.71515931,2987.1,2986.3,0.4436]
[1752257990603,14.71515931,2987.1,2986.3,1.7623]
[1752257990784,14.71515931,2987.1,2986.3,1.3187]
[1752257990988,14.71515931,2987.1,2986.6,0.4436]
[1752257990989,1.2155,2987.1,2986.6,0.4436]
[1752257991692,0.55,2987.3,2986.7,0.4436]
[1752257991897,0.03347745,2987.2,2986.7,0.4436]
[1752257992711,0.03347745,2987.2,2986.3,1.3187]
[1752257992908,0.03347745,2987.2,2986.8,0.4436]
[1752257993209,0.03347745,2987.2,2987.0,0.4446]
[1752257993451,0.58347745,2987.5,2987.0,0.001]
[1752257993600,0.55,2987.3,2987.0,0.001]
[1752257993784,1.3093,2987.1,2987.0,0.001]
[1752257994185,1.7587,2987.1,2987.0,0.001]
[1752257994984,2.3087,2987.1,2987.0,0.001]
[1752257995686,2.34217745,2987.1,2987.0,0.001]
[1752257995886,13.5763952,2987.1,2987.0,0.001]
[1752257996082,12.3087,2987.1,2987.0,0.001]
[1752257996783,24.71711565,2987.1,2987.0,0.001]
[1752257999807,0.55,2986.8,2986.2,0.001]
[1752258000009,1.2423,2986.5,2986.2,0.001]
[1752258000207,1.8746,2986.3,2985.8,0.001]
[1752258000434,6.068,2984.9,2983.0,0.17452239]
[1752258000608,0.55,2983.5,2981.9,3.60069229]
[1752258000813,0.55,2983.3,2982.0,1.3449]
[1752258000997,0.03347745,2983.2,2982.1,20.43541565]
[1752258001332,1.8746,2984.6,2982.6,1.3449]
[1752258001530,1.8746,2984.6,2982.1,8.027]
[1752258001531,0.4494,2984.4,2982.8,1.3449]
[1752258001733,0.03347745,2984.3,2982.9,5.32352442]
[1752258001941,0.58347745,2984.3,2982.9,5.29]
[1752258002138,0.58347745,2984.3,2982.8,1.3449]
[1752258002301,0.55,2984.1,2982.9,5.7466]
[1752258002499,0.55,2983.9,2982.9,0.4436]
[1752258002733,0.55,2983.7,2982.9,0.4436]
[1752258003030,10.55,2983.5,2982.3,6.6509]
[1752258003236,0.55,2983.3,2982.3,6.6509]
[1752258003407,0.55,2983.1,2982.2,0.4436]
[1752258003608,0.55,2982.9,2982.2,0.4436]
[1752258003810,12.40841565,2983.6,2982.2,0.4436]
[1752258003811,1.2676,2983.7,2982.3,1.2235]
[1752258004011,1.717,2984.5,2983.3,1.2235]
[1752258004219,1.717,2984.5,2983.4,5.7536]
[1752258004418,0.03347745,2984.4,2983.5,0.4436]
[1752258004939,1.2676,2984.9,2983.5,0.4436]
[1752258005241,0.03347745,2984.8,2983.7,1.2522]
[1752258005403,10.0,2984.5,2983.3,8.029]
[1752258005599,11.8752,2984.3,2983.3,8.029]
[1752258005829,0.48287745,2984.2,2983.3,8.029]
[1752258006025,0.55,2984.1,2983.3,8.029]
[1752258006339,0.55,2983.9,2983.3,8.029]
[1752258006544,0.03347745,2983.8,2983.3,8.029]
[1752258006959,0.1672,2983.5,2983.4,0.4436]
[1752258007254,0.1672,2983.7,2983.4,0.4436]
[1752258007451,0.03347745,2983.6,2983.4,0.4436]
[1752258007904,0.1672,2983.7,2983.4,0.4436]
[1752258008106,0.03347745,2984.5,2983.3,8.029]
[1752258008359,0.1672,2983.9,2983.5,0.4436]
[1752258008507,0.03347745,2983.8,2983.5,0.4436]
[1752258009158,0.03347745,2983.8,2983.6,0.4436]
[1752258009308,0.03347745,2983.8,2983.3,8.4726]
[1752258009505,0.1672,2983.6,2983.3,8.029]
[1752258009826,0.1672,2983.6,2983.4,5.318]
[1752258010155,0.1672,2983.6,2983.4,5.7616]
[1752258011246,0.55,2984.0,2983.4,5.318]
[1752258011556,0.03347745,2983.9,2983.4,5.318]
[1752258011761,0.03347745,2983.9,2982.6,1.2541]
[1752258011762,0.1672,2983.4,2982.6,1.2541]
[1752258011903,0.03347745,2983.3,2982.9,5.313]
[1752258012110,0.1672,2983.0,2982.9,5.313]
[1752258012855,0.1672,2983.0,2982.9,5.7566]
[1752258014626,0.1672,2983.0,2982.9,5.313]
[1752258015011,0.6166,2983.0,2982.9,5.313]
[1752258015211,1.9455,2983.0,2982.2,1.2586]
[1752258015418,0.1672,2982.4,2982.3,5.307]
[1752258016312,0.1672,2982.4,2982.3,5.7506]
[1752258016718,0.03347745,2982.9,2982.3,5.7506]
[1752258016919,0.1672,2982.7,2982.3,5.7506]
[1752258017119,0.1672,2982.7,2982.4,0.4745]
[1752258017424,0.1672,2982.7,2982.5,0.4745]
[1752258017647,0.1672,2982.7,2982.3,5.307]
[1752258017648,0.1672,2982.7,2982.6,0.4745]
[1752258019266,0.03347745,2983.3,2982.6,0.4745]
[1752258019448,1.2922,2983.7,2982.7,5.302]
[1752258019449,0.1672,2983.1,2982.7,5.302]
[1752258019645,0.03347745,2983.0,2982.7,5.302]
[1752258019853,0.03347745,2983.0,2982.9,1.2886]
[1752258020054,0.03347745,2983.6,2982.9,1.32212442]
[1752258020242,0.1672,2983.6,2983.0,0.4745]
[1752258020449,0.03347745,2983.5,2983.1,5.307]
[1752258020755,0.03347745,2983.5,2983.2,0.4745]
[1752258021245,0.03347745,2983.5,2983.1,5.307]
[1752258021424,0.1672,2983.6,2983.3,0.4745]
[1752258021628,0.1672,2983.6,2983.4,0.4745]
[1752258021928,0.4364,2983.9,2982.9,1.4558]
[1752258022129,0.1672,2983.4,2983.0,5.304]
[1752258022338,0.55,2983.5,2982.5,1.8213]
[1752258022537,0.55,2983.5,2982.2,10.0]
[1752258022538,0.1672,2982.8,2982.6,5.304]
[1752258022835,0.1672,2982.8,2982.7,5.305]
[1752258024558,0.1672,2982.8,2982.2,0.1672]
[1752258024833,0.1672,2982.4,2982.3,5.306]
[1752258025645,1.8602,2982.3,2982.1,0.002]
[1752258025889,0.97202609,2982.2,2982.1,0.002]
[1752258026335,2.71862609,2982.2,2982.1,0.002]
[1752258026538,13.43276663,2982.2,2982.1,0.002]
[1752258026733,2.41288918,2982.2,2982.1,0.002]
[1752258026938,0.74761799,2982.2,2982.1,0.002]
[1752258027151,0.93380067,2982.2,2982.1,0.002]
[1752258027356,1.92020067,2982.2,2982.1,0.002]
[1752258027644,0.74761799,2982.2,2982.1,0.002]
[1752258027888,0.90080557,2982.2,2982.1,0.002]
[1752258028039,0.03347745,2982.2,2982.1,0.002]
[1752258028246,0.93554082,2982.2,2982.1,0.002]
[1752258028680,1.92194082,2982.2,2982.1,0.002]
[1752258028856,2.1691349,2982.2,2982.1,0.002]
[1752258029052,0.90206337,2982.2,2982.1,0.002]
[1752258029342,0.90245405,2982.2,2982.1,0.002]
[1752258030178,0.18683879,2982.2,2982.1,0.002]
[1752258030490,1.45320591,2982.2,2982.1,0.002]
[1752258030650,0.18683879,2982.2,2982.1,0.002]
[1752258031029,0.03347745,2982.4,2982.1,0.4765]
[1752258031305,0.03347745,2982.6,2982.2,0.4745]
[1752258031579,0.03347745,2982.6,2982.3,7.0205]
[1752258031777,1.2264,2982.4,2982.1,0.002]
[1752258031978,1.14969179,2982.3,2982.1,0.002]
[1752258032276,0.90358606,2982.2,2982.1,0.002]
[1752258032448,0.18677566,2982.2,2982.1,0.002]
[1752258032647,0.18677566,2982.2,2982.1,5.325]
[1752258032849,0.903241,2982.2,2982.1,5.325]
[1752258033047,0.71646534,2982.2,2982.1,5.325]
[1752258033246,0.71646534,2982.2,2982.1,5.324]
[1752258033792,0.71646534,2982.2,2982.1,0.002]
[1752258034002,0.71646534,2982.2,2982.1,5.323]
[1752258034294,0.71646534,2982.2,2982.1,5.7975]
[1752258035262,0.03347745,2982.4,2982.1,5.7975]
[1752258035510,0.71691322,2982.3,2982.1,5.7975]
[1752258035666,0.71691322,2982.2,2982.1,5.7975]
[1752258035866,0.716845,2982.2,2982.1,5.7975]
[1752258036089,0.1672,2982.3,2982.1,5.7975]
[1752258036297,0.20067745,2982.6,2982.2,0.4745]
[1752258036506,0.20067745,2982.6,2982.1,5.4902]
[1752258036507,0.71698892,2982.5,2982.3,0.4745]
[1752258036672,0.75046637,2982.4,2982.1,5.4902]
[1752258036868,0.20067745,2982.6,2982.1,5.4902]
[1752258037391,0.71726528,2982.5,2982.2,0.4745]
[1752258037573,0.20067745,2982.6,2982.2,0.4745]
[1752258037902,1.1984511,2983.1,2982.3,1.411]
[1752258037903,0.20067745,2982.8,2982.3,1.411]
[1752258038104,0.89781852,2983.1,2982.4,0.50803004]
[1752258038399,0.71754806,2983.0,2982.5,4.5966824]
[1752258038703,0.03347745,2983.4,2982.7,1.2503]
[1752258038997,0.03347745,2983.4,2982.8,0.4745]
[1752258039395,0.03347745,2983.7,2982.8,0.4745]
[1752258039717,0.71793591,2983.6,2982.8,0.4745]
[1752258039898,1.6348511,2984.0,2982.8,0.4745]
[1752258039899,0.03347745,2983.5,2982.8,0.4745]
[1752258040095,0.71771789,2983.4,2982.8,0.4745]
[1752258040272,0.75119534,2983.3,2982.8,0.4745]
[1752258040606,0.71771789,2983.2,2982.9,0.4745]
[1752258040806,0.03347745,2983.1,2982.7,1.2503]
[1752258041111,0.93129597,2983.6,2983.0,0.4745]
[1752258041272,0.71818512,2983.5,2983.1,5.31]
[1752258041603,0.75166257,2983.4,2983.2,0.4745]
[1752258041799,0.71818512,2983.3,2983.1,5.31]
[1752258041971,0.03347745,2983.5,2983.1,5.31]
[1752258042174,0.71825714,2983.4,2983.1,5.31]
[1752258042399,0.75173459,2983.3,2983.2,0.4745]
[1752258043484,0.03347745,2983.3,2983.2,0.4745]
[1752258043699,0.03347745,2983.7,2983.2,0.4745]
[1752258043883,0.71856235,2983.6,2983.2,0.4745]
[1752258044211,1.7512,2984.1,2983.2,0.4745]
[1752258044212,0.7520398,2983.5,2983.2,0.4745]
[1752258044375,0.03347745,2983.5,2983.3,0.4745]
[1752258044567,0.03347745,2983.8,2983.3,1.8088]
[1752258044771,0.71844359,2983.7,2983.3,1.8088]
[1752258045006,0.75192104,2983.6,2983.3,1.8088]
[1752258045210,0.03347745,2983.6,2983.4,0.4745]
[1752258045394,0.03347745,2983.9,2983.5,5.299]
[1752258045595,0.71831623,2983.8,2983.5,5.299]
[1752258045907,0.75179368,2983.7,2983.5,5.299]
[1752258046119,0.03347745,2983.7,2983.6,10.4745]
[1752258046276,0.03347745,2984.2,2983.6,24.21721565]
[1752258046475,0.03347745,2984.2,2983.7,0.4745]
[1752258046672,0.03347745,2984.4,2983.7,0.4745]
[1752258046871,0.71822884,2984.3,2983.7,0.4745]
[1752258047119,0.03447745,2984.5,2983.8,0.03351431]
[1752258047275,0.001,2984.5,2983.9,7.0727]
[1752258047609,0.001,2984.5,2984.1,3.35102215]
[1752258047794,0.001,2984.5,2984.1,1.3343]
[1752258047999,0.001,2984.5,2984.2,0.4394]
[1752258048305,0.001,2984.5,2984.3,10.7652]
[1752258048609,0.001,2984.5,2984.3,11.2046]
[1752258048826,0.001,2984.5,2984.4,11.80720757]
[1752258049115,0.001,2984.5,2984.4,15.12445727]
[1752258051675,0.001,2984.5,2984.4,15.3698375]
[1752258051874,0.001,2984.5,2984.4,12.01908023]
[1752258052508,0.001,2984.5,2984.4,11.7737]
[1752258053008,0.001,2984.5,2984.4,1.7737]
[1752258053183,0.001,2984.5,2984.4,1.3343]
[1752258053382,0.001,2984.5,2984.4,5.294]
[1752258053905,0.001,2984.5,2984.4,5.7334]
[1752258054881,0.001,2984.5,2984.4,15.76690757]
[1752258055082,0.001,2984.5,2984.4,15.7334]
[1752258057418,0.001,2984.5,2984.4,5.294]
[1752258057714,0.001,2984.5,2984.4,5.289]
[1752258057715,0.4368,2984.5,2984.4,5.289]
[1752258058882,0.604,2984.5,2984.4,5.289]
[1752258059290,0.1682,2984.5,2984.4,5.289]
[1752258059918,0.604,2984.5,2984.4,5.289]
[1752258060911,0.1682,2984.5,2984.4,5.289]
[1752258063615,0.1682,2984.5,2984.4,5.7284]
[1752258063815,0.1682,2984.5,2984.4,5.289]
[1752258066297,0.604,2984.5,2984.4,5.289]
[1752258066498,1.8679,2984.5,2984.4,5.289]
[1752258066819,2.05469,2984.5,2984.4,5.289]
[1752258068322,2.05469,2984.5,2983.8,0.1672]
[1752258068636,0.1672,2984.2,2983.9,5.272]
[1752258069193,0.1672,2984.2,2983.8,0.1672]
[1752258069387,1.88749,2984.5,2983.5,9.3792]
[1752258069388,0.4358,2984.1,2983.5,9.3792]
[1752258069593,0.1672,2983.9,2983.6,5.267]
[1752258069898,1.45169,2984.5,2983.7,0.4394]
[1752258070210,0.1672,2984.3,2983.7,0.6066]
[1752258070419,0.03347745,2984.2,2983.7,0.6066]
[1752258070725,0.03347745,2984.2,2983.7,0.64011543]
[1752258070937,0.001,2984.5,2983.9,10.0]
[1752258071144,0.001,2984.5,2984.2,0.1672]
[1752258071295,0.001,2984.5,2984.3,5.267]
[1752258074439,0.001,2984.5,2984.3,5.7064]
[1752258074625,0.001,2984.5,2984.4,0.4394]
[1752258075001,0.001,2984.5,2984.4,0.47290757]
[1752258075251,0.001,2984.5,2984.4,0.64010757]
[1752258075909,0.001,2984.5,2984.4,0.6066]
[1752258076310,0.001,2984.5,2984.4,1.8758]
[1752258076758,0.001,2984.5,2984.4,1.86640247]
[1752258077054,0.001,2984.5,2984.4,1.4364]
[1752258077402,0.001,2984.5,2984.4,1.46990757]
[1752258078804,0.001,2984.5,2984.4,1.89880757]
[1752258079006,0.001,2984.5,2984.4,1.8653]
[1752258079923,0.001,2984.5,2984.4,5.258]
[1752258080106,0.001,2984.5,2984.4,5.72040757]
[1752258080298,0.001,2984.5,2984.4,5.88760757]
[1752258081042,0.001,2984.5,2984.4,10.49266484]
[1752258081217,0.001,2984.5,2984.4,10.93931874]
[1752258081835,0.001,2984.5,2984.4,33.36815484]
[1752258084724,0.001,2984.5,2984.4,32.88799337]
[1752258085665,0.001,2984.5,2984.4,11.4215]
[1752258085956,0.001,2984.5,2984.4,24.7025]
[1752258086757,0.4747,2984.5,2984.4,13.28]
[1752258087759,0.001,2984.5,2984.4,13.28]
[1752258088191,1.3316,2984.5,2984.4,8.032]
[1752258088496,0.001,2984.5,2984.4,13.281]
[1752258092092,0.03447745,2984.5,2984.4,13.281]
[1752258092251,0.50817745,2984.5,2984.4,13.281]
[1752258093083,0.001,2984.5,2984.4,13.281]
[1752258093695,0.001,2984.5,2984.4,15.0026]
[1752258093876,0.001,2984.5,2984.4,15.48276147]
[1752258094185,0.001,2984.5,2984.4,15.64996147]
[1752258095186,0.001,2984.5,2984.4,15.1698]
[1752258095690,0.001,2984.5,2984.4,29.00071874]
[1752258096513,0.001,2984.5,2984.4,25.64996147]
[1752258096788,0.001,2984.5,2984.4,29.00071874]
[1752258097190,0.001,2984.5,2984.4,25.64996147]
[1752258097558,0.001,2984.5,2984.4,29.00071874]
[1752258098886,0.001,2984.5,2984.4,25.65096147]
[1752258099059,0.001,2984.5,2984.4,29.00171874]
[1752258101884,0.001,2984.5,2984.4,25.1708]
[1752258103107,0.001,2984.5,2984.4,28.52155727]
[1752258103960,0.001,2984.5,2984.4,25.1708]
[1752258104177,0.001,2984.5,2984.4,28.52155727]
[1752258105174,0.001,2984.5,2984.4,25.1708]
[1752258105491,0.001,2984.5,2984.4,23.4492]
[1752258107856,0.001,2984.5,2984.4,13.256]
[1752258109052,0.001,2984.5,2984.4,15.40646147]
[1752258109256,0.001,2984.5,2984.4,28.75721874]
[1752258109593,0.001,2984.5,2984.4,28.92441874]
[1752258111068,1.34867745,2986.3,2984.8,1.3429]
[1752258111279,1.3152,2986.3,2985.6,13.7717361]
[1752258111462,1.3152,2986.3,2985.6,24.2277361]
[1752258111662,1.3152,2986.3,2985.6,24.6566361]
[1752258111868,0.4652,2986.2,2985.6,24.2277361]
[1752258114415,1.3152,2986.3,2985.6,38.48620807]
[1752258114616,0.4652,2986.4,2985.6,38.48620807]
[1752258114801,0.49867745,2986.4,2985.6,38.48620807]
[1752258115172,0.4652,2986.4,2985.6,38.48620807]
[1752258116504,0.55,2987.6,2986.2,3.34869489]
[1752258116711,1.11,2988.1,2986.3,33.33122235]
[1752258116712,0.4652,2987.0,2986.3,33.33122235]
[1752258116915,1.3548,2987.2,2986.7,3.34814964]
[1752258117123,1.3548,2987.2,2986.8,10.47648064]
[1752258117411,1.3548,2987.2,2986.8,10.443]
[1752258117635,1.82,2987.2,2986.8,10.443]
[1752258118508,1.3548,2987.2,2986.9,0.03347952]
[1752258118720,1.7251,2987.4,2987.0,10.444]
[1752258119085,0.4652,2987.3,2987.0,10.444]
[1752258119811,1.2599,2987.4,2987.0,10.444]
[1752258120032,1.3013,2987.7,2987.1,12.46231338]
[1752258120312,2.4113,2987.7,2987.2,10.437]
[1752258120480,0.4652,2987.6,2987.2,10.437]
[1752258120904,2.4113,2987.7,2987.2,10.437]
[1752258121114,2.4113,2987.7,2987.4,0.1672]
[1752258121115,1.11,2987.7,2987.4,0.1672]
[1752258121302,1.11,2987.7,2987.5,10.4684728]
[1752258121620,1.11,2987.7,2987.5,10.435]
[1752258121994,1.11,2987.7,2987.5,23.2927361]
[1752258122178,1.11,2987.7,2987.6,0.5961]
[1752258122825,2.22,2987.7,2987.6,0.1672]
[1752258123876,2.22,2987.7,2987.6,11.97026829]
[1752258124207,2.22,2987.7,2987.6,8.6231]
[1752258124608,2.22,2987.7,2987.6,8.1942]
[1752258125203,3.33,2987.7,2987.6,8.1942]
[1752258125605,3.33,2987.7,2987.6,18.1942]
[1752258126618,3.33,2987.7,2987.6,18.6231]
[1752258127579,4.44,2987.7,2987.6,23.67332976]
[1752258127832,4.44,2987.7,2987.6,19.89726147]
[1752258128011,4.44,2987.7,2987.6,20.32616147]
[1752258128325,4.44,2987.7,2987.6,23.67332976]
[1752258128512,4.44,2987.7,2987.6,20.32616147]
[1752258129830,4.44,2987.7,2987.6,19.846]
[1752258129984,5.55,2987.7,2987.6,19.846]
[1752258130996,5.55,2987.7,2987.6,19.4171]
[1752258131194,5.55,2987.7,2987.6,18.1942]
[1752258132412,6.66,2987.7,2987.6,18.1942]
[1752258133139,7.1252,2987.7,2987.6,18.1942]
[1752258133333,6.66,2987.7,2987.6,18.1942]
[1752258133491,6.66,2987.7,2987.6,18.429]
[1752258133692,6.66,2987.7,2987.6,28.429]
[1752258134336,7.1252,2987.7,2987.6,28.429]
[1752258134822,8.2352,2987.7,2987.6,28.429]
[1752258135140,8.2352,2987.7,2987.6,18.429]
[1752258135900,8.2352,2987.7,2987.6,13.232]